bitfinex/quotes_BTCUSD_20220202
["timestamp","ask_amount","ask_price","bid_price","bid_amount"]
[1643760180547,0.24227087,38760.0,38751.0,1.035448]
[1643760180749,0.24227087,38760.0,38752.0,0.1]
[1643760180949,0.24227087,38760.0,38753.0,0.0515]
[1643760181452,0.06450022,38758.0,38753.0,0.0515]
[1643760181650,0.22290376,38757.0,38753.0,0.0515]
[1643760181849,0.06450022,38758.0,38754.0,0.28050226]
[1643760182049,0.00145278,38757.0,38754.0,0.28050226]
[1643760182250,0.00145278,38757.0,38755.0,0.47959049]
[1643760182449,0.00145278,38757.0,38756.0,0.0515]
[1643760182652,0.00145278,38757.0,38756.0,0.499394]
[1643760182849,0.00145278,38757.0,38756.0,0.447894]
[1643760183051,0.01,38759.0,38757.0,0.27729288]
[1643760183251,0.01,38759.0,38757.0,0.32729288]
[1643760183252,0.00145278,38758.0,38757.0,0.32729288]
[1643760183451,0.00145278,38758.0,38757.0,0.67518688]
[1643760183650,0.00145278,38758.0,38757.0,0.77518688]
[1643760184305,0.24955698,38763.0,38757.0,0.77518688]
[1643760184501,0.00145278,38759.0,38757.0,0.42729288]
[1643760184702,0.00145278,38759.0,38758.0,0.447894]
[1643760185104,0.00145278,38759.0,38758.0,0.1]
[1643760185503,0.23955698,38763.0,38746.0,0.33990376]
[1643760185805,0.00145278,38760.0,38747.0,0.064505]
[1643760186105,0.00145278,38760.0,38746.0,0.260026]
[1643760186106,0.09626069,38750.0,38746.0,0.260026]
[1643760186303,0.09426069,38750.0,38747.0,0.3671449]
[1643760186505,0.31799058,38750.0,38741.0,0.22290376]
[1643760186703,0.31799058,38750.0,38740.0,0.514118]
[1643760186904,0.31799058,38750.0,38740.0,0.3851]
[1643760187303,0.31799058,38750.0,38748.0,0.03103284]
[1643760187504,0.22771946,38749.0,38748.0,0.03103284]
[1643760187807,0.074524,38752.0,38748.0,0.03103284]
[1643760188064,0.00145278,38750.0,38748.0,0.03103284]
[1643760188962,0.01,38752.0,38749.0,0.32530365]
[1643760189163,0.00145278,38751.0,38749.0,0.42257089]
[1643760189563,0.00145278,38751.0,38750.0,0.1]
[1643760190164,0.01,38752.0,38750.0,0.1]
[1643760190365,0.00145278,38752.0,38750.0,0.1]
[1643760191464,0.01,38753.0,38750.0,0.1]
[1643760191699,0.01145278,38753.0,38750.0,0.1]
[1643760192295,0.00145278,38753.0,38750.0,0.1]
[1643760192595,0.02118662,38757.0,38752.0,0.064498]
[1643760192794,0.02118662,38757.0,38755.0,0.36896871]
[1643760193194,0.02118662,38757.0,38756.0,0.1]
[1643760193397,0.02118662,38757.0,38752.0,0.064498]
[1643760193596,0.25448982,38750.0,38748.0,0.03103284]
[1643760193797,0.24409038,38757.0,38748.0,0.03103284]
[1643760193798,0.27290376,38757.0,38748.0,0.03103284]
[1643760193996,0.00145278,38751.0,38748.0,0.03103284]
[1643760194396,0.08497187,38751.0,38748.0,0.03103284]
[1643760194795,0.3661724,38751.0,38748.0,0.03103284]
[1643760194997,0.36471962,38751.0,38748.0,0.03103284]
[1643760195196,0.00145278,38751.0,38748.0,0.03103284]
[1643760196046,0.00145278,38751.0,38750.0,0.22351081]
[1643760196247,0.54118228,38754.0,38750.0,0.22351081]
[1643760196447,0.25145278,38751.0,38750.0,0.22351081]
[1643760196648,0.25145278,38751.0,38748.0,0.03103284]
[1643760197451,0.25,38751.0,38748.0,0.03103284]
[1643760197651,0.25145278,38751.0,38748.0,0.03103284]
[1643760197952,0.18912381,38750.0,38748.0,0.03103284]
[1643760198255,0.19060552,38750.0,38748.0,0.03103284]
[1643760199698,0.31596694,38751.0,38748.0,0.03103284]
[1643760199898,0.31451416,38751.0,38748.0,0.03103284]
[1643760200097,0.36596694,38751.0,38748.0,0.03103284]
[1643760200497,0.45918281,38751.0,38748.0,0.03103284]
[1643760200699,0.18828663,38750.0,38748.0,0.03103284]
[1643760200901,0.19522256,38750.0,38748.0,0.03103284]
[1643760201099,0.50462456,38750.0,38748.0,0.03103284]
[1643760201300,0.20155886,38749.0,38748.0,0.03103284]
[1643760203044,0.20155886,38749.0,38744.0,0.28670587]
[1643760203245,0.08745278,38750.0,38744.0,0.33670587]
[1643760203450,0.086,38750.0,38748.0,0.23769326]
[1643760203649,0.00145278,38749.0,38748.0,0.33311277]
[1643760203947,0.00145278,38749.0,38748.0,0.87850677]
[1643760204745,0.08619602,38750.0,38748.0,0.89914077]
[1643760204945,0.08619602,38750.0,38749.0,0.347894]
[1643760204946,0.0876488,38750.0,38749.0,0.347894]
[1643760205147,0.0876488,38750.0,38749.0,0.1]
[1643760205845,0.08619602,38750.0,38749.0,0.1]
[1643760206708,0.08619602,38750.0,38749.0,0.447894]
[1643760208197,0.08619602,38750.0,38749.0,0.497894]
[1643760208699,0.08619602,38750.0,38749.0,0.50821]
[1643760208897,0.08608218,38750.0,38749.0,0.45821]
[1643760209097,0.08608218,38750.0,38749.0,0.49843491]
[1643760209396,0.08608218,38750.0,38749.0,0.497894]
[1643760210196,0.08608218,38750.0,38749.0,0.447894]
[1643760212645,0.08608218,38750.0,38749.0,0.458211]
[1643760212844,0.08608218,38750.0,38749.0,0.447894]
[1643760216401,0.08608218,38750.0,38749.0,0.458212]
[1643760216402,0.08619602,38750.0,38749.0,0.458212]
[1643760216800,0.08619602,38750.0,38749.0,0.447894]
[1643760224103,0.08619602,38750.0,38749.0,0.45821]
[1643760224302,0.08619602,38750.0,38749.0,0.447894]
[1643760227653,0.08619602,38750.0,38749.0,0.1]
[1643760227852,0.08619602,38750.0,38748.0,0.05799283]
[1643760228052,0.08619602,38750.0,38749.0,0.010318]
[1643760228255,0.08619602,38750.0,38748.0,0.05799283]
[1643760229296,0.086,38750.0,38748.0,0.05799283]
[1643760229894,0.136,38750.0,38748.0,0.00799283]
[1643760230096,0.35584652,38749.0,38748.0,0.00799283]
[1643760230492,0.50584652,38749.0,38748.0,0.00799283]
[1643760231495,0.35,38747.0,38738.0,0.00119338]
[1643760231693,0.06452959,38746.0,38738.0,0.00119338]
[1643760232094,0.06452959,38746.0,38740.0,0.010321]
[1643760232294,0.06452959,38746.0,38735.0,0.00080556]
[1643760232494,0.22549671,38743.0,38740.0,0.01]
[1643760233552,0.22549671,38743.0,38735.0,0.00080556]
[1643760234353,0.07452848,38741.0,38736.0,0.01]
[1643760235956,0.07452848,38741.0,38736.0,0.02032]
[1643760236155,0.07452848,38741.0,38737.0,0.00145741]
[1643760236999,0.07452848,38741.0,38736.0,0.01]
[1643760237208,0.01,38741.0,38739.0,0.32538015]
[1643760237600,0.01,38741.0,38740.0,0.1]
[1643760238402,0.1029057,38744.0,38740.0,0.1]
[1643760239402,0.1129057,38744.0,38740.0,0.1]
[1643760240103,0.1129057,38744.0,38740.0,0.110319]
[1643760240303,0.01,38744.0,38740.0,0.1]
[1643760241863,0.15078303,38744.0,38740.0,0.1]
[1643760243865,0.23212195,38743.0,38739.0,0.06032]
[1643760244064,0.22078776,38740.0,38739.0,0.06032]
[1643760244303,0.22078776,38740.0,38739.0,0.01032]
[1643760245704,0.15078303,38744.0,38739.0,0.01032]
[1643760245705,0.17068546,38744.0,38739.0,0.01032]
[1643760245905,0.15078303,38744.0,38739.0,0.01032]
[1643760247952,0.15078303,38744.0,38739.0,0.02064]
[1643760247953,0.32162452,38743.0,38739.0,0.02064]
[1643760248149,0.32162452,38743.0,38739.0,0.01032]
[1643760248550,0.0475,38742.0,38739.0,0.01032]
[1643760248751,0.0475,38742.0,38736.0,0.01]
[1643760248752,0.35,38740.0,38736.0,0.01]
[1643760248948,0.43745151,38741.0,38736.0,0.01]
[1643760248949,0.65155055,38737.0,38736.0,0.01]
[1643760249148,0.92445431,38737.0,38736.0,0.01]
[1643760249348,0.92445431,38737.0,38736.0,0.0001]
[1643760249349,0.70155055,38737.0,38736.0,0.0001]
[1643760249748,0.5,38736.0,38735.0,0.00080556]
[1643760250153,0.72900282,38736.0,38735.0,0.00080556]
[1643760253100,0.57900282,38736.0,38735.0,0.00080556]
[1643760254902,0.61142119,38738.0,38735.0,0.00080556]
[1643760254903,0.19364105,38738.0,38735.0,0.00080556]
[1643760255104,0.06454702,38738.0,38735.0,0.00080556]
[1643760255751,0.33418171,38738.0,38735.0,0.00080556]
[1643760255949,0.42668374,38738.0,38735.0,0.00080556]
[1643760256352,0.60575756,38738.0,38735.0,0.00080556]
[1643760256649,0.60575756,38738.0,38735.0,0.00225997]
[1643760257450,0.60575756,38738.0,38735.0,0.00080556]
[1643760257651,0.1887535,38737.0,38735.0,0.00225997]
[1643760257864,0.05,38737.0,38735.0,0.00225997]
[1643760258051,0.23935966,38737.0,38735.0,0.00225997]
[1643760258453,0.53713237,38736.0,38735.0,0.00225997]
[1643760258651,0.53713237,38736.0,38735.0,0.00080556]
[1643760259502,0.53959688,38736.0,38735.0,0.00080556]
[1643760260304,0.35,38736.0,38735.0,0.00080556]
[1643760260507,0.53708114,38736.0,38735.0,0.00080556]
[1643760261104,0.35,38736.0,38735.0,0.00080556]
[1643760261404,0.53829785,38736.0,38735.0,0.00080556]
[1643760261603,0.35,38736.0,38735.0,0.00080556]
[1643760267097,0.5,38736.0,38735.0,0.00080556]
[1643760267897,0.35,38736.0,38735.0,0.00080556]
[1643760268798,0.05,38737.0,38735.0,0.00080556]
[1643760269197,0.33612287,38738.0,38735.0,0.00080556]
[1643760269397,0.05,38737.0,38735.0,0.00080556]
[1643760269797,0.28612287,38738.0,38735.0,0.00225997]
[1643760269798,0.33612287,38738.0,38735.0,0.00225997]
[1643760270647,0.33612287,38738.0,38735.0,0.00080556]
[1643760270950,0.40066187,38738.0,38735.0,0.00225997]
[1643760271948,0.40066187,38738.0,38735.0,0.00080556]
[1643760272247,0.40066187,38738.0,38735.0,0.00225997]
[1643760273063,0.40066187,38738.0,38735.0,0.00080556]
[1643760273247,0.40066187,38738.0,38735.0,0.00225997]
[1643760273849,0.37096103,38735.0,38734.0,0.0022]
[1643760274699,0.37096103,38735.0,38734.0,0.00205279]
[1643760280052,0.02096103,38735.0,38734.0,0.00205279]
[1643760280851,0.37096103,38735.0,38734.0,0.00205279]
[1643760283099,0.02096103,38735.0,38734.0,0.00205279]
[1643760283901,0.22096103,38735.0,38734.0,0.00205279]
[1643760284902,0.42096103,38735.0,38734.0,0.00205279]
[1643760285548,0.22096103,38735.0,38734.0,0.00205279]
[1643760294653,0.42096103,38735.0,38734.0,0.00205279]
[1643760295654,0.22096103,38735.0,38734.0,0.00205279]
[1643760298800,0.2208881,38735.0,38734.0,0.00205279]
[1643760299202,0.0208881,38735.0,38734.0,0.00205279]
[1643760301556,0.2708881,38735.0,38734.0,0.00205279]
[1643760301756,0.27178387,38734.0,38731.0,0.75261539]
[1643760301958,0.0208881,38735.0,38732.0,0.064537]
[1643760302557,0.0208881,38735.0,38733.0,0.43476751]
[1643760303458,0.0208881,38735.0,38732.0,0.49930451]
[1643760304301,0.0208881,38735.0,38732.0,0.43476751]
[1643760305901,0.0208881,38735.0,38732.0,0.48476751]
[1643760306502,0.0208881,38735.0,38732.0,0.54930451]
[1643760306703,0.0208881,38735.0,38732.0,0.49930451]
[1643760309249,0.0208881,38735.0,38732.0,0.54930451]
[1643760309450,0.0208881,38735.0,38733.0,0.43476751]
[1643760312504,0.0208881,38735.0,38732.0,0.43476751]
[1643760316055,0.0208881,38735.0,38732.0,0.33286751]
[1643760316254,0.0208881,38735.0,38730.0,0.07744]
[1643760316456,0.0208881,38735.0,38731.0,0.00144003]
[1643760317455,0.0208881,38735.0,38730.0,0.12744]
[1643760317658,0.21767897,38735.0,38731.0,0.00144003]
[1643760318156,0.18642813,38734.0,38731.0,0.00144003]
[1643760318358,0.0208881,38735.0,38731.0,0.00144003]
[1643760318759,0.0208881,38735.0,38730.0,0.11784]
[1643760318960,0.0208881,38735.0,38731.0,0.00144003]
[1643760319204,0.20762007,38735.0,38731.0,0.00144003]
[1643760319400,0.28234808,38732.0,38731.0,0.00144003]
[1643760319599,0.08234808,38732.0,38731.0,0.00144003]
[1643760320001,0.08234808,38732.0,38730.0,0.07744]
[1643760320202,0.08234808,38732.0,38730.0,0.07888009]
[1643760320407,0.08234808,38732.0,38730.0,0.06928009]
[1643760321205,0.08234808,38732.0,38730.0,0.06784]
[1643760321603,0.08234808,38732.0,38730.0,0.11784]
[1643760322952,0.0208881,38735.0,38730.0,0.11784]
[1643760323751,0.0208881,38735.0,38731.0,0.00144005]
[1643760323951,0.0208881,38735.0,38731.0,0.10295761]
[1643760324153,0.0208881,38735.0,38732.0,0.129069]
[1643760324354,0.0208881,38735.0,38733.0,2.9498819]
[1643760324554,0.0208881,38735.0,38733.0,2.9998819]
[1643760324753,0.0208881,38735.0,38734.0,0.1]
[1643760324953,0.0208881,38735.0,38734.0,0.447894]
[1643760325153,0.0208881,38735.0,38734.0,0.7276302]
[1643760325656,0.0208881,38735.0,38734.0,0.7921542]
[1643760331155,0.0208881,38735.0,38734.0,0.6921542]
[1643760333657,0.0208881,38735.0,38734.0,0.412418]
[1643760333861,0.0208881,38735.0,38731.0,0.13050403]
[1643760334059,0.0208881,38735.0,38731.0,0.00144003]
[1643760334302,0.0208881,38735.0,38730.0,0.0033]
[1643760334500,0.0208881,38735.0,38731.0,0.00072002]
[1643760334802,0.08982014,38734.0,38731.0,0.00072002]
[1643760335400,0.08982014,38734.0,38730.0,0.0033]
[1643760335602,0.23057113,38731.0,38730.0,0.0033]
[1643760338150,0.20436028,38733.0,38731.0,0.064539]
[1643760338950,0.20436028,38733.0,38730.0,0.117839]
[1643760339152,0.23656067,38732.0,38730.0,0.0533]
[1643760339351,0.19136093,38731.0,38730.0,0.05474007]
[1643760339750,0.4361399,38731.0,38730.0,0.05474007]
[1643760339950,0.25,38731.0,38730.0,0.05474007]
[1643760340352,0.25,38731.0,38730.0,0.0033]
[1643760340951,0.24988223,38731.0,38730.0,0.0033]
[1643760341357,0.5,38730.0,38728.0,0.56983104]
[1643760341555,0.22280848,38729.0,38727.0,0.0118]
[1643760341814,0.4017,38728.0,38727.0,0.0118]
[1643760342012,0.35,38727.0,38724.0,0.002]
[1643760342216,0.4017,38727.0,38724.0,0.002]
[1643760343213,0.4017,38727.0,38726.0,0.0011]
[1643760343514,0.66749508,38725.0,38724.0,0.002]
[1643760343713,0.94952516,38725.0,38724.0,0.002]
[1643760344312,0.94952516,38725.0,38722.0,0.0033]
[1643760344313,0.5,38724.0,38722.0,0.0033]
[1643760344515,0.59952516,38725.0,38715.0,0.002]
[1643760344516,0.35,38721.0,38715.0,0.002]
[1643760344719,0.27272706,38720.0,38715.0,0.002]
[1643760344914,0.27272706,38720.0,38709.0,0.0011]
[1643760344915,0.35,38717.0,38709.0,0.0011]
[1643760345115,0.4017,38716.0,38709.0,0.0011]
[1643760345457,0.8354317,38712.0,38710.0,0.00993448]
[1643760345657,0.8354317,38712.0,38710.0,0.01993448]
[1643760345857,0.91909823,38712.0,38710.0,0.00615929]
[1643760346659,0.91909823,38712.0,38709.0,0.0011]
[1643760346660,0.97079823,38712.0,38709.0,0.0011]
[1643760346859,0.20101495,38711.0,38709.0,0.0011]
[1643760347060,0.20686682,38711.0,38709.0,0.0011]
[1643760350000,0.19409715,38711.0,38709.0,0.0011]
[1643760350201,0.00585187,38711.0,38709.0,0.0011]
[1643760350603,0.00585187,38711.0,38708.0,0.00140501]
[1643760350604,0.19270833,38711.0,38708.0,0.00140501]
[1643760351001,0.00585187,38711.0,38708.0,0.00140501]
[1643760351200,0.00585187,38711.0,38707.0,0.0072593]
[1643760351406,0.1937855,38711.0,38708.0,0.00140503]
[1643760352406,0.1937855,38711.0,38707.0,0.0011]
[1643760352407,0.0517,38710.0,38707.0,0.0011]
[1643760352604,0.0517,38710.0,38708.0,0.00140503]
[1643760352605,0.35,38709.0,38708.0,0.00140503]
[1643760353057,0.5,38709.0,38708.0,0.00140503]
[1643760353454,0.5,38709.0,38707.0,0.0011]
[1643760353657,0.5,38709.0,38707.0,0.00250506]
[1643760354258,0.72102706,38709.0,38707.0,0.00250506]
[1643760354656,0.55757435,38708.0,38707.0,0.0011]
[1643760358318,0.35,38707.0,38704.0,0.0061593]
[1643760358520,0.29573148,38706.0,38704.0,0.0061593]
[1643760358721,0.60123523,38705.0,38704.0,0.0061593]
[1643760359118,0.95161135,38705.0,38704.0,0.0061593]
[1643760359321,0.95161135,38705.0,38700.0,0.03234034]
[1643760359521,0.60276395,38704.0,38701.0,0.0038407]
[1643760359719,0.60276395,38704.0,38703.0,0.00340521]
[1643760360765,0.60276395,38704.0,38703.0,0.002]
[1643760360965,0.75276395,38704.0,38703.0,0.002]
[1643760361165,0.80446395,38704.0,38703.0,0.002]
[1643760361968,0.5,38703.0,38700.0,0.00576216]
[1643760362165,0.28550915,38702.0,38700.0,0.00576216]
[1643760362364,0.71993071,38701.0,38699.0,0.0011]
[1643760362565,0.35,38699.0,38698.0,0.00423784]
[1643760362864,0.78793478,38699.0,38698.0,0.00423784]
[1643760363065,1.03307312,38699.0,38698.0,0.00423784]
[1643760363266,0.5,38698.0,38697.0,0.00203581]
[1643760363467,0.77741445,38698.0,38697.0,0.00203581]
[1643760363669,0.77741445,38698.0,38683.0,0.01]
[1643760363670,0.5,38697.0,38683.0,0.01]
[1643760363866,1.417,38695.0,38683.0,0.01]
[1643760364069,0.1,38690.0,38673.0,0.05]
[1643760364311,0.32450016,38677.0,38673.0,0.05]
[1643760364521,0.35,38675.0,38670.0,0.001]
[1643760364718,0.0517,38674.0,38670.0,0.001]
[1643760364912,0.2718249,38674.0,38670.0,0.001]
[1643760365309,0.0517,38674.0,38670.0,0.001]
[1643760365511,0.33422327,38673.0,38670.0,0.001]
[1643760365710,0.33422327,38673.0,38670.0,0.00240139]
[1643760366111,0.35,38672.0,38669.0,0.00240139]
[1643760366414,0.35,38671.0,38666.0,0.0011]
[1643760366616,0.0517,38670.0,38666.0,0.0011]
[1643760367212,0.2201249,38669.0,38666.0,0.0011]
[1643760367413,0.0517,38668.0,38666.0,0.0011]
[1643760367615,0.04653001,38668.0,38666.0,0.0011]
[1643760368072,0.04653001,38668.0,38666.0,0.08083069]
[1643760368474,0.04653001,38668.0,38666.0,0.0011]
[1643760368971,0.04653001,38668.0,38664.0,0.0011]
[1643760369373,0.27126756,38669.0,38664.0,0.0011]
[1643760369576,0.08003238,38668.0,38664.0,0.0011]
[1643760369772,0.08003238,38668.0,38660.0,0.0011]
[1643760370573,0.08003238,38668.0,38664.0,0.00139462]
[1643760371475,0.08003238,38668.0,38662.0,0.0111]
[1643760371707,0.08003238,38668.0,38664.0,0.0013946]
[1643760372108,0.2,38667.0,38662.0,0.0035946]
[1643760372405,0.2,38667.0,38661.0,0.0064054]
[1643760372406,0.27620547,38665.0,38661.0,0.0064054]
[1643760373206,0.08003238,38668.0,38661.0,0.0064054]
[1643760373406,0.01,38666.0,38661.0,0.0064054]
[1643760374506,0.01,38666.0,38660.0,0.0046946]
[1643760374709,0.01,38666.0,38659.0,0.38985199]
[1643760374906,0.01,38666.0,38661.0,0.064641]
[1643760375306,0.01,38666.0,38661.0,0.06602875]
[1643760375562,0.00567626,38666.0,38661.0,0.06602875]
[1643760375762,0.25527845,38666.0,38661.0,0.06602875]
[1643760375961,0.08737343,38662.0,38661.0,0.00138775]
[1643760376362,0.08737343,38662.0,38660.0,0.01]
[1643760376563,0.08737343,38662.0,38660.0,0.00138779]
[1643760377467,0.08737343,38662.0,38659.0,0.129285]
[1643760377664,0.08737343,38662.0,38659.0,0.1306728]
[1643760378663,0.08737343,38662.0,38659.0,0.129285]
[1643760378865,0.02182036,38665.0,38659.0,0.129285]
[1643760379066,0.00567626,38666.0,38660.0,0.347894]
[1643760379311,0.00567626,38666.0,38659.0,0.18067282]
[1643760379511,0.00567626,38666.0,38661.0,0.064642]
[1643760380113,0.00567626,38666.0,38662.0,0.00138771]
[1643760381212,0.00567626,38666.0,38659.0,0.129285]
[1643760381213,0.00567626,38666.0,38659.0,0.179285]
[1643760381412,0.00567626,38666.0,38662.0,0.0013877]
[1643760381809,0.00567626,38666.0,38663.0,0.064642]
[1643760383761,0.00447586,38666.0,38663.0,0.164642]
[1643760384360,0.00552414,38666.0,38663.0,0.1]
[1643760384660,0.21262967,38665.0,38663.0,0.1]
[1643760385060,0.21262967,38665.0,38662.0,0.00138076]
[1643760385365,0.18740743,38664.0,38662.0,0.00138076]
[1643760385859,0.18740743,38664.0,38652.0,0.064661]
[1643760385860,0.43066382,38663.0,38652.0,0.064661]
[1643760386061,0.43066382,38663.0,38661.0,0.00138079]
[1643760386261,0.54280631,38662.0,38661.0,0.00138079]
[1643760386714,0.19280631,38662.0,38661.0,0.00138079]
[1643760386909,0.43657613,38662.0,38661.0,0.00138079]
[1643760387108,0.43657613,38662.0,38652.0,0.064661]
[1643760387408,0.245,38662.0,38660.0,0.00138779]
[1643760387608,0.18895802,38661.0,38660.0,0.00138779]
[1643760387807,0.32514214,38663.0,38660.0,0.00138779]
[1643760388409,0.32514214,38663.0,38658.0,0.01]
[1643760388410,0.18469682,38662.0,38658.0,0.01]
[1643760388609,0.32514214,38663.0,38660.0,0.00069389]
[1643760389009,0.08066382,38663.0,38660.0,0.00069389]
[1643760389608,0.08066382,38663.0,38658.0,0.01]
[1643760389809,0.08066382,38663.0,38660.0,0.00069389]
[1643760390662,0.08066382,38663.0,38658.0,0.01]
[1643760390860,0.08066382,38663.0,38660.0,0.00069389]
[1643760391061,0.18461552,38662.0,38660.0,0.00069389]
[1643760391264,0.08066382,38663.0,38660.0,0.00069389]
[1643760391461,0.59976007,38661.0,38660.0,0.00069389]
[1643760391663,0.21059348,38661.0,38660.0,0.00069389]
[1643760391863,0.21059348,38661.0,38657.0,0.0022]
[1643760392161,0.15965237,38661.0,38659.0,0.00138782]
[1643760393263,0.18448773,38662.0,38658.0,0.00138784]
[1643760393461,0.08066382,38663.0,38658.0,0.00138784]
[1643760394310,0.18690798,38662.0,38657.0,0.0022]
[1643760394511,0.18690798,38662.0,38659.0,0.00138782]
[1643760395112,0.18620176,38662.0,38659.0,0.00138782]
[1643760395311,0.10220708,38663.0,38659.0,0.00138782]
[1643760395511,0.10220708,38663.0,38657.0,0.0022]
[1643760395711,0.10220708,38663.0,38659.0,0.0013878]
[1643760396215,0.18659227,38662.0,38659.0,0.0013878]
[1643760396414,0.18602331,38662.0,38659.0,0.0013878]
[1643760396615,0.23602331,38662.0,38659.0,0.0013878]
[1643760396812,0.23602331,38662.0,38657.0,0.0022]
[1643760397014,0.23602331,38662.0,38659.0,0.00138782]
[1643760397015,0.0517,38661.0,38659.0,0.00138782]
[1643760397214,0.56821094,38660.0,38659.0,0.00138782]
[1643760397414,0.61991094,38660.0,38659.0,0.00138782]
[1643760397614,0.61491094,38660.0,38659.0,0.00138782]
[1643760398063,0.61491094,38660.0,38658.0,0.00138786]
[1643760398064,0.2983151,38659.0,38658.0,0.00138786]
[1643760398263,0.3500151,38659.0,38658.0,0.00138786]
[1643760398566,0.6000151,38659.0,38658.0,0.00138786]
[1643760398764,0.3500151,38659.0,38658.0,0.00138786]
[1643760398966,0.25669652,38659.0,38658.0,0.00138786]
[1643760399165,0.24397491,38659.0,38657.0,0.0022]
[1643760399364,0.0517,38659.0,38657.0,0.00358789]
[1643760399564,0.2,38658.0,38657.0,0.00358789]
[1643760399764,0.38740488,38658.0,38657.0,0.00358789]
[1643760400165,0.2,38658.0,38657.0,0.00358789]
[1643760400464,0.2,38658.0,38657.0,0.0022]
[1643760400865,0.20436153,38662.0,38657.0,0.0022]
[1643760401066,0.18510204,38662.0,38657.0,0.0022]
[1643760401265,0.25060248,38664.0,38657.0,0.0022]
[1643760401810,0.25060248,38664.0,38659.0,0.00138782]
[1643760402008,0.7021881,38664.0,38659.0,0.00138782]
[1643760402210,0.72137488,38664.0,38659.0,0.00138782]
[1643760402607,0.7021881,38664.0,38659.0,0.00138782]
[1643760402807,0.7021881,38664.0,38657.0,0.0022]
[1643760403008,0.7021881,38664.0,38660.0,0.00138779]
[1643760404010,0.7021881,38664.0,38657.0,0.0022]
[1643760404211,0.7021881,38664.0,38660.0,0.00138777]
[1643760405210,0.7021881,38664.0,38657.0,0.0022]
[1643760405461,0.7021881,38664.0,38660.0,0.00138777]
[1643760406062,0.2333119,38663.0,38660.0,0.00138777]
[1643760406269,1.77897363,38662.0,38657.0,0.0022]
[1643760406466,1.77897363,38662.0,38660.0,0.00138779]
[1643760406665,1.96027571,38661.0,38660.0,0.00138779]
[1643760406866,2.01197571,38661.0,38660.0,0.00138779]
[1643760407265,0.64497571,38661.0,38660.0,0.00138779]
[1643760407465,0.79497571,38661.0,38657.0,0.0022]
[1643760407667,0.12934533,38662.0,38659.0,0.00138782]
[1643760407865,0.00552414,38666.0,38659.0,0.00138782]
[1643760408367,0.01851501,38662.0,38659.0,0.00138782]
[1643760408568,0.3146962,38661.0,38659.0,0.00138782]
[1643760408768,0.44910895,38660.0,38657.0,0.0022]
[1643760408965,0.55080895,38660.0,38659.0,0.00138782]
[1643760409217,0.87737061,38660.0,38659.0,0.00138782]
[1643760409912,0.87737061,38660.0,38657.0,0.0022]
[1643760410113,0.87737061,38660.0,38658.0,0.00138786]
[1643760410315,0.94205296,38660.0,38658.0,0.00138786]
[1643760410511,0.58620477,38659.0,38658.0,0.00138786]
[1643760411113,0.58620477,38659.0,38657.0,0.0022]
[1643760411316,0.83084961,38658.0,38657.0,0.00289395]
[1643760411917,0.57135518,38658.0,38657.0,0.00289395]
[1643760412318,0.57135518,38658.0,38654.0,0.01]
[1643760412319,0.35,38657.0,38654.0,0.01]
[1643760412517,0.37683642,38656.0,38654.0,0.01]
[1643760412718,0.1378227,38656.0,38654.0,0.01]
[1643760412972,0.03903103,38655.0,38654.0,0.01]
[1643760413269,0.35603364,38656.0,38654.0,0.01]
[1643760413470,0.08992404,38654.0,38651.0,0.38174615]
[1643760413670,0.08992404,38654.0,38650.0,0.38174615]
[1643760413872,0.13992404,38654.0,38650.0,0.38174615]
[1643760414271,0.13992404,38654.0,38651.0,0.40902036]
[1643760414472,0.20552414,38653.0,38652.0,0.40902036]
[1643760414670,0.20552414,38653.0,38652.0,0.38174615]
[1643760414869,0.20552414,38653.0,38651.0,0.38174615]
[1643760415570,0.20552414,38653.0,38652.0,0.40902033]
[1643760415774,0.25552414,38653.0,38652.0,0.38174615]
[1643760416373,0.25,38653.0,38652.0,0.38174615]
[1643760416812,0.25,38653.0,38652.0,0.40902033]
[1643760417516,0.433924,38653.0,38652.0,0.40902033]
[1643760417714,0.433924,38653.0,38652.0,0.02727418]
[1643760417912,0.433924,38653.0,38651.0,0.38243847]
[1643760418114,0.4887038,38652.0,38651.0,0.00069232]
[1643760418314,0.4887038,38652.0,38650.0,0.38174615]
[1643760418514,0.05,38653.0,38650.0,0.38243849]
[1643760418515,0.54323039,38651.0,38650.0,0.38243849]
[1643760418714,0.54323039,38651.0,38650.0,0.40971152]
[1643760418918,0.59323039,38651.0,38650.0,0.40971152]
[1643760419114,0.4,38651.0,38650.0,0.40971152]
[1643760419314,0.59133234,38651.0,38650.0,0.40971152]
[1643760419514,0.4,38651.0,38650.0,0.40901918]
[1643760419714,0.4,38651.0,38650.0,0.38174615]
[1643760419715,0.59581558,38651.0,38650.0,0.38174615]
[1643760419915,0.59581558,38651.0,38650.0,0.40901918]
[1643760420567,0.4,38651.0,38650.0,0.40901918]
[1643760420967,0.4,38651.0,38650.0,0.38174615]
[1643760421166,0.4,38651.0,38650.0,0.40901918]
[1643760421367,0.59669368,38651.0,38650.0,0.40901918]
[1643760421569,0.59120823,38651.0,38650.0,0.40901918]
[1643760421867,0.4,38651.0,38650.0,0.40901918]
[1643760422467,0.4,38651.0,38650.0,0.40910873]
[1643760422867,0.28392047,38651.0,38650.0,0.3818357]
[1643760423066,0.28392047,38651.0,38650.0,0.40910873]
[1643760423668,0.28392047,38651.0,38649.0,0.00138471]
[1643760424311,0.33392047,38651.0,38649.0,0.3818357]
[1643760424712,0.33392047,38651.0,38649.0,0.40911195]
[1643760424910,0.33392047,38651.0,38649.0,0.3818357]
[1643760425311,0.33392047,38651.0,38649.0,0.40911196]
[1643760425610,0.33392047,38651.0,38649.0,0.3818357]
[1643760425811,0.33392047,38651.0,38649.0,0.40911234]
[1643760426513,0.48898604,38650.0,38649.0,0.02727664]
[1643760426716,0.48898604,38650.0,38648.0,0.38301612]
[1643760426912,0.39212867,38649.0,38648.0,0.38440087]
[1643760427312,0.39212867,38649.0,38648.0,0.00256517]
[1643760427513,0.2,38649.0,38648.0,0.00256517]
[1643760427965,0.2,38649.0,38648.0,0.00118042]
[1643760428967,0.45549162,38649.0,38648.0,0.00118042]
[1643760430369,0.2,38649.0,38648.0,0.00118042]
[1643760431373,0.40917272,38649.0,38648.0,0.00118042]
[1643760431808,0.2,38649.0,38648.0,0.00118042]
[1643760432009,0.2,38648.0,38645.0,0.0030105]
[1643760432209,0.49555348,38648.0,38645.0,0.0030105]
[1643760432407,0.54555348,38648.0,38646.0,0.02728568]
[1643760432608,0.54555348,38648.0,38647.0,0.02728568]